[Event "*** Titled Tuesday 3|2 Blitz"]
[Site "Chess.com"]
[Date "2016.07.05"]
[Round "1"]
[White "dcremisi"]
[Black "JusticeBot"]
[Result "0-1"]
[WhiteElo "2231"]
[BlackElo "2549"]
[TimeControl "180+2"]
[EndTime "17:08:15 PDT"]
[Termination "JusticeBot won by checkmate"]

1. d4 {[%clk 0:02:45.6]} 1... Nf6 {[%clk 0:03:00.5]} 2. c4 {[%clk 0:02:45.4]}
2... e6 {[%clk 0:03:02]} 3. Nf3 {[%clk 0:02:43.8]} 3... b6 {[%clk 0:03:03]} 4.
g3 {[%clk 0:02:43.3]} 4... Ba6 {[%clk 0:03:04.7]} 5. b3 {[%clk 0:02:42.8]} 5...
d5 {[%clk 0:03:05.1]} 6. cxd5 {[%clk 0:02:42.6]} 6... exd5 {[%clk 0:03:05.9]} 7.
Bg2 {[%clk 0:02:43.6]} 7... Bb4+ {[%clk 0:03:06.7]} 8. Bd2 {[%clk 0:02:42.3]}
8... Bd6 {[%clk 0:03:05.3]} 9. O-O {[%clk 0:02:42.6]} 9... O-O {[%clk
0:03:04.1]} 10. Nc3 {[%clk 0:02:43.3]} 10... h6 {[%clk 0:03:04.7]} 11. Re1
{[%clk 0:02:40.9]} 11... Re8 {[%clk 0:03:05.5]} 12. e3 {[%clk 0:02:41.8]} 12...
Nc6 {[%clk 0:02:51.2]} 13. Bf1 {[%clk 0:02:36.8]} 13... Bxf1 {[%clk 0:02:45.7]}
14. Rxf1 {[%clk 0:02:38.7]} 14... a6 {[%clk 0:02:37.3]} 15. Kg2 {[%clk
0:02:36.7]} 15... Qd7 {[%clk 0:02:38.5]} 16. Qe2 {[%clk 0:02:31.4]} 16... Nb4
{[%clk 0:02:35]} 17. Rfc1 {[%clk 0:02:23.9]} 17... c5 {[%clk 0:02:35]} 18. dxc5
{[%clk 0:02:23.8]} 18... bxc5 {[%clk 0:02:27.4]} 19. Na4 {[%clk 0:02:23.7]}
19... Qe7 {[%clk 0:02:13.9]} 20. Bxb4 {[%clk 0:02:16.2]} 20... cxb4 {[%clk
0:02:15.8]} 21. Nb6 {[%clk 0:02:09.8]} 21... Rad8 {[%clk 0:02:03.4]} 22. Qxa6
{[%clk 0:02:07.7]} 22... Qe4 {[%clk 0:01:47.3]} 23. Rd1 {[%clk 0:01:53.4]} 23...
Bc5 {[%clk 0:01:13.9]} 24. Na4 {[%clk 0:01:50.1]} 24... Bxe3 {[%clk 0:01:08.1]}
25. fxe3 {[%clk 0:01:47.8]} 25... Ng4 {[%clk 0:01:09.8]} 26. Rd2 {[%clk
0:00:44.2]} 26... Nxe3+ {[%clk 0:01:03.2]} 27. Kf2 {[%clk 0:00:45.3]} 27... Ng4+
{[%clk 0:01:04.9]} 28. Kg2 {[%clk 0:00:46.4]} 28... Nxh2 {[%clk 0:00:17.7]} 29.
Kxh2 {[%clk 0:00:34.8]} 29... Qxf3 {[%clk 0:00:18.9]} 30. Qf1 {[%clk 0:00:30.6]}
30... Qh5+ {[%clk 0:00:19.1]} 31. Qh3 {[%clk 0:00:29.8]} 31... Qg5 {[%clk
0:00:19.4]} 32. Rad1 {[%clk 0:00:27.8]} 32... Re3 {[%clk 0:00:20.5]} 33. Qg2
{[%clk 0:00:20.4]} 33... Rde8 {[%clk 0:00:21.5]} 34. Nc5 {[%clk 0:00:19]} 34...
Qh5+ {[%clk 0:00:21.6]} 35. Kg1 {[%clk 0:00:15.4]} 35... Re2 {[%clk 0:00:23.5]}
36. Rxe2 {[%clk 0:00:14.4]} 36... Rxe2 {[%clk 0:00:25.4]} 37. Qh1 {[%clk
0:00:15.3]} 37... Qe5 {[%clk 0:00:24.1]} 38. Qh4 {[%clk 0:00:12.6]} 38... Qe3+
{[%clk 0:00:24.9]} 39. Kh1 {[%clk 0:00:14.1]} 39... Qf3+ {[%clk 0:00:26.5]} 40.
Kg1 {[%clk 0:00:15.8]} 40... Qg2# {[%clk 0:00:28.4]} 0-1

[Event "*** Titled Tuesday 3|2 Blitz"]
[Site "Chess.com"]
[Date "2016.07.05"]
[Round "1"]
[White "Alliswell998"]
[Black "CroatianPower"]
[Result "1-0"]
[WhiteElo "2181"]
[BlackElo "2476"]
[TimeControl "180+2"]
[EndTime "17:08:25 PDT"]
[Termination "Alliswell998 won by resignation"]

1. e4 {[%clk 0:02:52.1]} 1... e6 {[%clk 0:03:00.8]} 2. d4 {[%clk 0:02:52.7]}
2... d5 {[%clk 0:03:02]} 3. Nc3 {[%clk 0:02:53.3]} 3... Bb4 {[%clk 0:03:02.7]}
4. e5 {[%clk 0:02:52.3]} 4... c5 {[%clk 0:03:03.6]} 5. a3 {[%clk 0:02:52.9]}
5... Bxc3+ {[%clk 0:03:04.9]} 6. bxc3 {[%clk 0:02:54.8]} 6... Qa5 {[%clk
0:03:05.9]} 7. Bd2 {[%clk 0:02:52.2]} 7... Qa4 {[%clk 0:03:07.2]} 8. Rb1 {[%clk
0:02:49.1]} 8... c4 {[%clk 0:03:07.6]} 9. Nh3 {[%clk 0:02:36.8]} 9... Ne7 {[%clk
0:03:03.6]} 10. Be2 {[%clk 0:02:23.1]} 10... Nbc6 {[%clk 0:03:02.1]} 11. O-O
{[%clk 0:02:24]} 11... O-O {[%clk 0:02:47.1]} 12. f4 {[%clk 0:02:12.8]} 12... f6
{[%clk 0:02:35.4]} 13. Kh1 {[%clk 0:02:03.9]} 13... b6 {[%clk 0:02:32.7]} 14.
Ra1 {[%clk 0:01:45.3]} 14... Bd7 {[%clk 0:02:33.2]} 15. Ra2 {[%clk 0:01:45.3]}
15... fxe5 {[%clk 0:02:22.8]} 16. fxe5 {[%clk 0:01:45.6]} 16... Rxf1+ {[%clk
0:02:22.9]} 17. Qxf1 {[%clk 0:01:46.4]} 17... Rf8 {[%clk 0:02:22.8]} 18. Qe1
{[%clk 0:01:46.6]} 18... h6 {[%clk 0:02:01]} 19. Nf4 {[%clk 0:01:44]} 19... Nd8
{[%clk 0:01:36.9]} 20. Bh5 {[%clk 0:01:34.6]} 20... Be8 {[%clk 0:01:29.9]} 21.
h3 {[%clk 0:01:29.8]} 21... Bxh5 {[%clk 0:01:17.1]} 22. Nxh5 {[%clk 0:01:29.5]}
22... Nf5 {[%clk 0:01:18.7]} 23. Kh2 {[%clk 0:01:23.2]} 23... Qe8 {[%clk
0:01:14.3]} 24. Qe2 {[%clk 0:01:19.2]} 24... Qg6 {[%clk 0:01:09.9]} 25. Nf4
{[%clk 0:01:16.2]} 25... Qg3+ {[%clk 0:01:05.2]} 26. Kg1 {[%clk 0:01:17.5]}
26... Nh4 {[%clk 0:01:02]} 27. Ra1 {[%clk 0:01:10]} 27... g5 {[%clk 0:00:50.8]}
28. Nh5 {[%clk 0:01:07.3]} 28... Nf3+ {[%clk 0:00:23.9]} 29. Qxf3 {[%clk
0:01:06.1]} 29... Qxf3 {[%clk 0:00:23.9]} 30. gxf3 {[%clk 0:01:07.3]} 30... Rxf3
{[%clk 0:00:25.6]} 31. Kg2 {[%clk 0:01:02.9]} 31... Rf5 {[%clk 0:00:24.9]} 32.
Rf1 {[%clk 0:01:02.7]} 32... Rxf1 {[%clk 0:00:25.4]} 33. Kxf1 {[%clk 0:01:03.8]}
33... Kf7 {[%clk 0:00:24.3]} 34. Ke2 {[%clk 0:01:04.5]} 34... Kg6 {[%clk
0:00:24.3]} 35. Nf6 {[%clk 0:01:05.3]} 35... Kf5 {[%clk 0:00:25.4]} 36. Kf3
{[%clk 0:01:06]} 36... Nc6 {[%clk 0:00:22]} 37. Ne8 {[%clk 0:00:53.6]} 37... Kg6
{[%clk 0:00:20.5]} 38. Nc7 {[%clk 0:00:53.6]} 38... Kf7 {[%clk 0:00:21.5]} 39.
Kg4 {[%clk 0:00:54.4]} 39... Nd8 {[%clk 0:00:20.5]} 40. h4 {[%clk 0:00:51.9]}
40... gxh4 {[%clk 0:00:21.4]} 41. Kxh4 {[%clk 0:00:53.3]} 41... Kg6 {[%clk
0:00:21.4]} 42. a4 {[%clk 0:00:51.4]} 42... a5 {[%clk 0:00:21.5]} 43. Bc1 {[%clk
0:00:51.9]} 43... Nf7 {[%clk 0:00:21.1]} 44. Nxe6 {[%clk 0:00:52.2]} 44... Kf5
{[%clk 0:00:21.9]} 45. Nc7 {[%clk 0:00:51.6]} 45... Ke4 {[%clk 0:00:22.8]} 46.
e6 {[%clk 0:00:52.7]} 46... Nh8 {[%clk 0:00:24.1]} 47. Kh5 {[%clk 0:00:52.8]}
1-0

[Event "*** Titled Tuesday 3|2 Blitz"]
[Site "Chess.com"]
[Date "2016.07.05"]
[Round "1"]
[White "wonderfultime"]
[Black "pedromartinez91"]
[Result "1-0"]
[WhiteElo "2668"]
[BlackElo "2308"]
[TimeControl "180+2"]
[EndTime "17:08:28 PDT"]
[Termination "wonderfultime won by checkmate"]

1. d4 {[%clk 0:03:01.9]} 1... d5 {[%clk 0:03:00.4]} 2. c4 {[%clk 0:03:02.9]}
2... e6 {[%clk 0:03:00.2]} 3. Nc3 {[%clk 0:03:04.2]} 3... Nf6 {[%clk 0:03:00.1]}
4. Nf3 {[%clk 0:03:05.4]} 4... Be7 {[%clk 0:02:59.1]} 5. Bf4 {[%clk 0:03:06]}
5... O-O {[%clk 0:02:58.1]} 6. e3 {[%clk 0:03:07.3]} 6... Nbd7 {[%clk
0:02:50.7]} 7. c5 {[%clk 0:03:08.2]} 7... c6 {[%clk 0:02:49.5]} 8. Bd3 {[%clk
0:03:08.2]} 8... b6 {[%clk 0:02:46.5]} 9. b4 {[%clk 0:03:08.7]} 9... a5 {[%clk
0:02:47.3]} 10. a3 {[%clk 0:02:58.5]} 10... Ba6 {[%clk 0:02:41.4]} 11. O-O
{[%clk 0:02:40.9]} 11... Qc8 {[%clk 0:02:33.4]} 12. h3 {[%clk 0:02:08.1]} 12...
Qb7 {[%clk 0:02:29.5]} 13. Qe2 {[%clk 0:01:55.7]} 13... Bxd3 {[%clk 0:02:26.4]}
14. Qxd3 {[%clk 0:01:57.6]} 14... Ra7 {[%clk 0:02:09.1]} 15. cxb6 {[%clk
0:00:50.1]} 15... Nxb6 {[%clk 0:01:59.2]} 16. b5 {[%clk 0:00:48.7]} 16... Nc4
{[%clk 0:01:47.2]} 17. a4 {[%clk 0:00:50.1]} 17... Bb4 {[%clk 0:01:45.7]} 18.
bxc6 {[%clk 0:00:48.7]} 18... Qxc6 {[%clk 0:01:46.1]} 19. Nb5 {[%clk 0:00:50.2]}
19... Raa8 {[%clk 0:01:31.1]} 20. Rfc1 {[%clk 0:00:51.2]} 20... Qb7 {[%clk
0:01:05.5]} 21. Ne5 {[%clk 0:00:44]} 21... Nxe5 {[%clk 0:00:55.4]} 22. Bxe5
{[%clk 0:00:45.9]} 22... Rfc8 {[%clk 0:00:51.6]} 23. Nc7 {[%clk 0:00:31]} 23...
Ra7 {[%clk 0:00:44.2]} 24. Rc2 {[%clk 0:00:32.1]} 24... Nd7 {[%clk 0:00:40.6]}
25. Bg3 {[%clk 0:00:29.7]} 25... Nb6 {[%clk 0:00:36.1]} 26. Nb5 {[%clk 0:00:26]}
26... Raa8 {[%clk 0:00:36.6]} 27. Rac1 {[%clk 0:00:26.9]} 27... Rxc2 {[%clk
0:00:27.1]} 28. Rxc2 {[%clk 0:00:23]} 28... Nxa4 {[%clk 0:00:23.7]} 29. Rc7
{[%clk 0:00:23.5]} 29... Nb2 {[%clk 0:00:19.1]} 30. Qe2 {[%clk 0:00:18.5]} 30...
Qa6 {[%clk 0:00:20.2]} 31. Qh5 {[%clk 0:00:19]} 31... g6 {[%clk 0:00:19.5]} 32.
Qf3 {[%clk 0:00:17.4]} 32... Rf8 {[%clk 0:00:18]} 33. Qf6 {[%clk 0:00:17.3]}
33... Nc4 {[%clk 0:00:07.1]} 34. Bf4 {[%clk 0:00:17.8]} 34... Qxb5 {[%clk
0:00:07.9]} 35. Bh6 {[%clk 0:00:19.1]} 35... Be7 {[%clk 0:00:04.7]} 36. Qg7#
{[%clk 0:00:20.5]} 1-0

[Event "*** Titled Tuesday 3|2 Blitz"]
[Site "Chess.com"]
[Date "2016.07.05"]
[Round "1"]
[White "asms9699"]
[Black "rithwik2002"]
[Result "0-1"]
[WhiteElo "2357"]
[BlackElo "1986"]
[TimeControl "180+2"]
[EndTime "17:08:53 PDT"]
[Termination "rithwik2002 won by resignation"]

1. c4 {[%clk 0:03:01]} 1... Nf6 {[%clk 0:02:59.6]} 2. g3 {[%clk 0:03:02]} 2...
g6 {[%clk 0:03:00.6]} 3. Bg2 {[%clk 0:03:02.4]} 3... Bg7 {[%clk 0:03:02.2]} 4.
Nc3 {[%clk 0:03:03.5]} 4... O-O {[%clk 0:03:03.7]} 5. Nf3 {[%clk 0:03:04.7]}
5... d6 {[%clk 0:03:05.1]} 6. O-O {[%clk 0:03:05.6]} 6... c6 {[%clk 0:03:06.6]}
7. Rb1 {[%clk 0:03:04.4]} 7... Nbd7 {[%clk 0:03:05.4]} 8. b4 {[%clk 0:03:04.4]}
8... e5 {[%clk 0:03:02.1]} 9. d3 {[%clk 0:03:05.2]} 9... Re8 {[%clk 0:02:57.7]}
10. a4 {[%clk 0:03:05.6]} 10... a5 {[%clk 0:02:40.8]} 11. b5 {[%clk 0:03:05.4]}
11... Nc5 {[%clk 0:02:41.1]} 12. Ba3 {[%clk 0:03:01.5]} 12... Nfd7 {[%clk
0:02:19.3]} 13. bxc6 {[%clk 0:02:59.5]} 13... bxc6 {[%clk 0:02:18.6]} 14. Nd2
{[%clk 0:02:59.9]} 14... Qc7 {[%clk 0:02:18.3]} 15. Nb5 {[%clk 0:02:52.5]} 15...
cxb5 {[%clk 0:02:18.9]} 16. Bxa8 {[%clk 0:02:52.3]} 16... b4 {[%clk 0:02:20]}
17. Bb2 {[%clk 0:02:52.8]} 17... Bb7 {[%clk 0:02:21.1]} 18. Bxb7 {[%clk
0:02:53.2]} 18... Qxb7 {[%clk 0:02:22.6]} 19. Nf3 {[%clk 0:02:47.6]} 19... Qc6
{[%clk 0:02:22.1]} 20. d4 {[%clk 0:02:41]} 20... exd4 {[%clk 0:02:20.5]} 21.
Bxd4 {[%clk 0:02:41.7]} 21... Qxa4 {[%clk 0:02:12.7]} 22. Bxg7 {[%clk
0:02:40.6]} 22... Qxd1 {[%clk 0:02:07]} 23. Rfxd1 {[%clk 0:02:40.6]} 23... Kxg7
{[%clk 0:02:08.5]} 24. Rxd6 {[%clk 0:02:40.7]} 24... Rxe2 {[%clk 0:02:09.6]} 25.
Kf1 {[%clk 0:02:31]} 25... Rc2 {[%clk 0:02:08.6]} 26. Nd2 {[%clk 0:02:24]} 26...
Ne5 {[%clk 0:01:43.5]} 27. Rd5 {[%clk 0:02:01]} 27... Nxc4 {[%clk 0:01:41.4]}
28. Nxc4 {[%clk 0:02:01.4]} 28... Rxc4 {[%clk 0:01:42.2]} 29. Ke1 {[%clk
0:01:59.4]} 29... Rc3 {[%clk 0:01:40.5]} 30. Kd1 {[%clk 0:01:55.2]} 30... Nd3
{[%clk 0:01:35.4]} 31. f3 {[%clk 0:01:41.6]} 31... Nc5 {[%clk 0:01:27.9]} 32.
Rc1 {[%clk 0:01:31.6]} 32... Rd3+ {[%clk 0:01:10.7]} 33. Rxd3 {[%clk 0:01:30.7]}
33... Nxd3 {[%clk 0:01:12.6]} 34. Ra1 {[%clk 0:01:30.7]} 34... a4 {[%clk
0:01:13.3]} 35. Kc2 {[%clk 0:00:59.5]} 35... Nc5 {[%clk 0:00:56.3]} 36. Rd1
{[%clk 0:00:47.9]} 36... Ne6 {[%clk 0:00:50.5]} 37. Rd5 {[%clk 0:00:41.3]} 37...
Ng5 {[%clk 0:00:38.3]} 38. Rxg5 {[%clk 0:00:40]} 38... f5 {[%clk 0:00:37.7]} 39.
f4 {[%clk 0:00:16.5]} 39... h6 {[%clk 0:00:35.3]} 40. Kb2 {[%clk 0:00:15.8]}
40... hxg5 {[%clk 0:00:35.3]} 41. fxg5 {[%clk 0:00:17.7]} 41... Kf7 {[%clk
0:00:36.3]} 42. h4 {[%clk 0:00:19.3]} 42... Ke6 {[%clk 0:00:37.4]} 43. Kc2
{[%clk 0:00:20.6]} 43... f4 {[%clk 0:00:37.3]} 44. gxf4 {[%clk 0:00:21.3]} 44...
Kf5 {[%clk 0:00:38.3]} 45. Kd3 {[%clk 0:00:20.7]} 45... Kxf4 {[%clk 0:00:37.3]}
46. h5 {[%clk 0:00:22.3]} 46... Kxg5 {[%clk 0:00:38.4]} 47. hxg6 {[%clk
0:00:22.6]} 47... Kxg6 {[%clk 0:00:39.5]} 48. Kc4 {[%clk 0:00:24.2]} 48... b3
{[%clk 0:00:37.3]} 49. Kc3 {[%clk 0:00:25.3]} 49... Kf5 {[%clk 0:00:38.3]} 50.
Kb2 {[%clk 0:00:26.8]} 50... Ke4 {[%clk 0:00:39.5]} 51. Kb1 {[%clk 0:00:28.4]}
51... Kd3 {[%clk 0:00:40.8]} 52. Kb2 {[%clk 0:00:30]} 52... Kd2 {[%clk
0:00:41.2]} 53. Kb1 {[%clk 0:00:31.2]} 53... Kc3 {[%clk 0:00:42.1]} 54. Kc1
{[%clk 0:00:32.6]} 54... b2+ {[%clk 0:00:42.7]} 55. Kb1 {[%clk 0:00:34.5]} 55...
a3 {[%clk 0:00:44.1]} 56. Ka2 {[%clk 0:00:35.4]} 56... Kc2 {[%clk 0:00:45.8]}
0-1

[Event "*** Titled Tuesday 3|2 Blitz"]
[Site "Chess.com"]
[Date "2016.07.05"]
[Round "1"]
[White "Cayse"]
[Black "Newlight1"]
[Result "1-0"]
[WhiteElo "2581"]
[BlackElo "2254"]
[TimeControl "180+2"]
[EndTime "17:09:20 PDT"]
[Termination "Cayse won by resignation"]

1. e4 {[%clk 0:02:59.4]} 1... c5 {[%clk 0:03:00.5]} 2. Nf3 {[%clk 0:03:00.1]}
2... d6 {[%clk 0:03:01.3]} 3. Bb5+ {[%clk 0:03:00.7]} 3... Bd7 {[%clk
0:03:00.4]} 4. Bxd7+ {[%clk 0:03:01.3]} 4... Qxd7 {[%clk 0:03:02.3]} 5. c4
{[%clk 0:03:02.4]} 5... Nf6 {[%clk 0:03:02.9]} 6. Nc3 {[%clk 0:03:03.4]} 6...
Nc6 {[%clk 0:03:04.3]} 7. d4 {[%clk 0:03:04.1]} 7... cxd4 {[%clk 0:03:05.9]} 8.
Nxd4 {[%clk 0:03:05.5]} 8... g6 {[%clk 0:03:07.6]} 9. f3 {[%clk 0:03:06.7]} 9...
Bg7 {[%clk 0:03:09.3]} 10. Be3 {[%clk 0:03:07.9]} 10... O-O {[%clk 0:03:10.3]}
11. O-O {[%clk 0:03:08]} 11... Rac8 {[%clk 0:03:11.8]} 12. b3 {[%clk 0:03:04.8]}
12... a6 {[%clk 0:03:09.2]} 13. a4 {[%clk 0:02:38.9]} 13... Rfd8 {[%clk
0:03:08.8]} 14. Qd2 {[%clk 0:02:35]} 14... e6 {[%clk 0:03:01.7]} 15. Rad1 {[%clk
0:02:27.1]} 15... d5 {[%clk 0:03:00.1]} 16. cxd5 {[%clk 0:02:09.4]} 16... exd5
{[%clk 0:03:02]} 17. Nxc6 {[%clk 0:02:10.7]} 17... bxc6 {[%clk 0:02:59.5]} 18.
e5 {[%clk 0:02:11.3]} 18... Ne8 {[%clk 0:02:58.7]} 19. f4 {[%clk 0:02:10.5]}
19... Rb8 {[%clk 0:02:56.6]} 20. Ne4 {[%clk 0:02:09.3]} 20... Qf5 {[%clk
0:02:33.8]} 21. Ng3 {[%clk 0:02:04.2]} 21... Qd7 {[%clk 0:02:32.6]} 22. Qc2
{[%clk 0:02:00.4]} 22... Nc7 {[%clk 0:02:26.5]} 23. Kh1 {[%clk 0:02:00.4]} 23...
Qe6 {[%clk 0:02:08.1]} 24. Bc5 {[%clk 0:01:55.9]} 24... d4 {[%clk 0:02:06.5]}
25. Bd6 {[%clk 0:01:40.2]} 25... Rxd6 {[%clk 0:01:57.6]} 26. exd6 {[%clk
0:01:41.2]} 26... Qxd6 {[%clk 0:01:59.5]} 27. Ne4 {[%clk 0:01:37]} 27... Qd5
{[%clk 0:02:00.3]} 28. Nd2 {[%clk 0:01:25.2]} 28... Ne6 {[%clk 0:01:57.4]} 29.
Rc1 {[%clk 0:01:17.9]} 29... Rb6 {[%clk 0:01:54.2]} 30. f5 {[%clk 0:01:13.8]}
30... Ng5 {[%clk 0:01:36]} 31. h4 {[%clk 0:01:01.9]} 31... Nh3 {[%clk
0:01:24.5]} 32. Rf3 {[%clk 0:00:54.5]} 32... d3 {[%clk 0:01:16.1]} 33. Qc4
{[%clk 0:00:51.1]} 33... Bh6 {[%clk 0:01:11.4]} 34. Qxd5 {[%clk 0:00:50.2]}
34... cxd5 {[%clk 0:01:12.2]} 35. Rc8+ {[%clk 0:00:51.5]} 35... Kg7 {[%clk
0:01:10.1]} 36. Rxh3 {[%clk 0:00:46.8]} 36... Bxd2 {[%clk 0:01:08.8]} 37. Rxd3
{[%clk 0:00:48.4]} 37... Bf4 {[%clk 0:01:07.9]} 38. g3 {[%clk 0:00:40.2]} 38...
Be5 {[%clk 0:01:04.8]} 39. Rc5 {[%clk 0:00:37.1]} 39... gxf5 {[%clk 0:01:00.4]}
40. Rcxd5 {[%clk 0:00:37]} 40... Kf6 {[%clk 0:01:01.8]} 41. Kg2 {[%clk
0:00:36.3]} 41... Rc6 {[%clk 0:01:00.1]} 42. Re3 {[%clk 0:00:34.4]} 42... Re6
{[%clk 0:00:58.8]} 43. b4 {[%clk 0:00:29]} 43... f4 {[%clk 0:00:33.6]} 44. gxf4
{[%clk 0:00:17.4]} 44... Bxf4 {[%clk 0:00:35.5]} 45. Rxe6+ {[%clk 0:00:18.2]}
45... fxe6 {[%clk 0:00:33.5]} 46. Rd7 {[%clk 0:00:18.1]} 46... h5 {[%clk
0:00:33.4]} 47. Kf3 {[%clk 0:00:19.2]} 47... Be5 {[%clk 0:00:32.7]} 48. b5
{[%clk 0:00:18.9]} 48... axb5 {[%clk 0:00:32.7]} 49. axb5 {[%clk 0:00:20.8]}
49... Bh2 {[%clk 0:00:30.5]} 50. b6 {[%clk 0:00:21.6]} 50... e5 {[%clk
0:00:32.1]} 51. b7 {[%clk 0:00:22.1]} 51... Ke6 {[%clk 0:00:33.5]} 52. Rd8
{[%clk 0:00:23.1]} 52... Ke7 {[%clk 0:00:34.2]} 53. b8=Q {[%clk 0:00:23.3]}
53... e4+ {[%clk 0:00:35.4]} 54. Kxe4 {[%clk 0:00:23.9]} 54... Bxb8 {[%clk
0:00:37.3]} 55. Rxb8 {[%clk 0:00:24.9]} 55... Kf6 {[%clk 0:00:39.2]} 56. Rb5
{[%clk 0:00:26]} 56... Kg6 {[%clk 0:00:41.1]} 57. Kf4 {[%clk 0:00:27]} 57... Kh6
{[%clk 0:00:42.7]} 58. Rb6+ {[%clk 0:00:27.9]} 58... Kh7 {[%clk 0:00:43.9]} 59.
Kg5 {[%clk 0:00:29.1]} 59... Kg7 {[%clk 0:00:45.8]} 60. Rb7+ {[%clk 0:00:30]}
60... Kg8 {[%clk 0:00:46.9]} 61. Kf6 {[%clk 0:00:30.3]} 61... Kh8 {[%clk
0:00:46.7]} 62. Kg6 {[%clk 0:00:31.2]} 1-0

[Event "*** Titled Tuesday 3|2 Blitz"]
[Site "Chess.com"]
[Date "2016.07.05"]
[Round "1"]
[White "dawtonlms"]
[Black "MaestroASK"]
[Result "0-1"]
[WhiteElo "2148"]
[BlackElo "2471"]
[TimeControl "180+2"]
[EndTime "17:10:05 PDT"]
[Termination "MaestroASK won by checkmate"]

1. e4 {[%clk 0:02:58.6]} 1... d6 {[%clk 0:03:01.4]} 2. d4 {[%clk 0:02:59.3]}
2... g6 {[%clk 0:03:02.6]} 3. Nc3 {[%clk 0:03:01]} 3... c6 {[%clk 0:03:03.9]} 4.
Be3 {[%clk 0:03:02.4]} 4... e5 {[%clk 0:03:04.7]} 5. Nf3 {[%clk 0:03:02.1]} 5...
Bg7 {[%clk 0:03:05.2]} 6. Qd2 {[%clk 0:03:02.9]} 6... Nd7 {[%clk 0:03:05.2]} 7.
Be2 {[%clk 0:03:02.5]} 7... Qe7 {[%clk 0:03:05.6]} 8. O-O {[%clk 0:03:03.6]}
8... Ngf6 {[%clk 0:03:06.1]} 9. dxe5 {[%clk 0:03:01]} 9... dxe5 {[%clk
0:03:06.3]} 10. Rad1 {[%clk 0:02:59.9]} 10... O-O {[%clk 0:03:06.7]} 11. Rfe1
{[%clk 0:02:58.9]} 11... Nc5 {[%clk 0:03:06]} 12. Bg5 {[%clk 0:02:34.2]} 12...
Re8 {[%clk 0:02:53.4]} 13. h3 {[%clk 0:02:33.3]} 13... Ne6 {[%clk 0:02:50.3]}
14. Be3 {[%clk 0:02:32.1]} 14... Nh5 {[%clk 0:02:49.8]} 15. Bf1 {[%clk
0:02:29.2]} 15... Rd8 {[%clk 0:02:37.1]} 16. Qc1 {[%clk 0:02:23.4]} 16... Nd4
{[%clk 0:02:31.7]} 17. Ne2 {[%clk 0:02:21]} 17... Nxf3+ {[%clk 0:02:30.2]} 18.
gxf3 {[%clk 0:02:22.9]} 18... Be6 {[%clk 0:02:23.4]} 19. Ng3 {[%clk 0:02:19.4]}
19... Nf4 {[%clk 0:02:11]} 20. Bxf4 {[%clk 0:02:04.5]} 20... exf4 {[%clk
0:02:11.7]} 21. Qxf4 {[%clk 0:02:05.6]} 21... Bxb2 {[%clk 0:02:11.4]} 22. e5
{[%clk 0:02:00.1]} 22... Rxd1 {[%clk 0:02:09.1]} 23. Rxd1 {[%clk 0:02:02]} 23...
Qc5 {[%clk 0:02:06.1]} 24. Re1 {[%clk 0:01:57.2]} 24... Rd8 {[%clk 0:01:57.3]}
25. Qg5 {[%clk 0:01:46.9]} 25... Qa5 {[%clk 0:01:24.4]} 26. Nh5 {[%clk
0:01:42.4]} 26... Bf5 {[%clk 0:00:32.3]} 27. Nf6+ {[%clk 0:01:34.5]} 27... Kg7
{[%clk 0:00:31.3]} 28. Nh5+ {[%clk 0:01:34.3]} 28... Kf8 {[%clk 0:00:31.2]} 29.
Qh6+ {[%clk 0:01:31.9]} 29... Ke8 {[%clk 0:00:28.2]} 30. Nf6+ {[%clk 0:01:31.4]}
30... Ke7 {[%clk 0:00:28.4]} 31. Rb1 {[%clk 0:01:28.5]} 31... Qxa2 {[%clk
0:00:25.2]} 32. Re1 {[%clk 0:01:20.7]} 32... Bxe5 {[%clk 0:00:19.2]} 33. Ng4
{[%clk 0:01:11.4]} 33... Bxg4 {[%clk 0:00:17.6]} 34. Rxe5+ {[%clk 0:01:04.2]}
34... Kd6 {[%clk 0:00:17.8]} 35. fxg4 {[%clk 0:00:56.7]} 35... Kxe5 {[%clk
0:00:18]} 36. Qg5+ {[%clk 0:00:57.7]} 36... f5 {[%clk 0:00:17.6]} 37. Qxd8
{[%clk 0:00:58.4]} 37... Qxc2 {[%clk 0:00:17.3]} 38. Qe7+ {[%clk 0:00:58.4]}
38... Kd5 {[%clk 0:00:15.4]} 39. Qxb7 {[%clk 0:00:53.3]} 39... fxg4 {[%clk
0:00:15.4]} 40. hxg4 {[%clk 0:00:55.2]} 40... h5 {[%clk 0:00:12.1]} 41. Qf7+
{[%clk 0:00:52.3]} 41... Kc5 {[%clk 0:00:11.8]} 42. gxh5 {[%clk 0:00:51.1]}
42... gxh5 {[%clk 0:00:13]} 43. Qxh5+ {[%clk 0:00:52.7]} 43... Kb6 {[%clk
0:00:14.4]} 44. f4 {[%clk 0:00:45.5]} 44... a5 {[%clk 0:00:14.8]} 45. Qe5 {[%clk
0:00:41.5]} 45... a4 {[%clk 0:00:12.4]} 46. Qd4+ {[%clk 0:00:39.3]} 46... Qc5
{[%clk 0:00:13.1]} 47. Qxc5+ {[%clk 0:00:39.3]} 47... Kxc5 {[%clk 0:00:14.3]}
48. Bd3 {[%clk 0:00:29.8]} 48... Kd4 {[%clk 0:00:11.4]} 49. Bb1 {[%clk
0:00:29.5]} 49... c5 {[%clk 0:00:12.4]} 50. Kf2 {[%clk 0:00:29.3]} 50... c4
{[%clk 0:00:12.9]} 51. Ke2 {[%clk 0:00:28.9]} 51... a3 {[%clk 0:00:11.4]} 52. f5
{[%clk 0:00:21.1]} 52... c3 {[%clk 0:00:07.8]} 53. Kd1 {[%clk 0:00:21.2]} 53...
Ke5 {[%clk 0:00:06.8]} 54. Kc2 {[%clk 0:00:21.6]} 54... Kxf5 {[%clk 0:00:06.1]}
55. Kxc3+ {[%clk 0:00:23.2]} 55... Ke5 {[%clk 0:00:07.4]} 56. Kb3 {[%clk
0:00:24.8]} 56... a2 {[%clk 0:00:08.9]} 57. Ka3 {[%clk 0:00:26.7]} 57... axb1=Q
{[%clk 0:00:09.6]} 58. Ka4 {[%clk 0:00:27.4]} 58... Kd5 {[%clk 0:00:10.8]} 59.
Ka5 {[%clk 0:00:28.7]} 59... Kc5 {[%clk 0:00:11.9]} 60. Ka4 {[%clk 0:00:30]}
60... Qb4# {[%clk 0:00:12.8]} 0-1